bitfinex/quotes_BTCUSD_20250428
["timestamp","ask_amount","ask_price","bid_price","bid_amount"]
[1745878133827,0.13411879,94715.0,94714.0,0.0105581]
[1745878134053,0.13411879,94715.0,94714.0,0.0145581]
[1745878134279,0.13411879,94715.0,94714.0,0.004]
[1745878140229,0.15040593,94715.0,94714.0,0.004]
[1745878146754,0.21189999,94715.0,94714.0,0.004]
[1745878147190,0.15040593,94715.0,94714.0,0.004]
[1745878147630,0.36156572,94715.0,94714.0,0.004]
[1745878147848,0.36156572,94715.0,94714.0,0.002]
[1745878148182,0.21116871,94711.0,94710.0,0.0008478]
[1745878148417,0.31805885,94711.0,94710.0,0.0008478]
[1745878148617,0.35395703,94711.0,94710.0,0.0008478]
[1745878149044,0.36138146,94711.0,94710.0,0.0008478]
[1745878151036,0.36138146,94711.0,94710.0,0.0018478]
[1745878152905,0.51642928,94711.0,94710.0,0.0018478]
[1745878153124,0.56362928,94711.0,94710.0,0.0018478]
[1745878153350,0.48103593,94711.0,94710.0,0.0018478]
[1745878153533,0.51070327,94711.0,94710.0,0.0018478]
[1745878153916,0.51070327,94711.0,94710.0,0.0008478]
[1745878154116,0.51270327,94711.0,94710.0,0.0008478]
[1745878154344,0.62059341,94711.0,94710.0,0.0008478]
[1745878154787,0.56571625,94708.0,94707.0,0.0008478]
[1745878154971,0.22573409,94700.0,94690.0,0.0192764]
[1745878155221,0.73379704,94700.0,94690.0,0.0192764]
[1745878155412,0.76947175,94700.0,94678.0,0.002]
[1745878155825,0.80653781,94700.0,94678.0,0.002]
[1745878156034,0.85153781,94700.0,94678.0,0.002]
[1745878156264,0.82189618,94700.0,94678.0,0.002]
[1745878156655,1.44929818,94700.0,94678.0,0.002]
[1745878156791,1.37408418,94700.0,94678.0,0.002]
[1745878156987,1.35521137,94700.0,94678.0,0.002]
[1745878157195,1.35921137,94700.0,94678.0,0.002]
[1745878157416,1.26887937,94700.0,94678.0,0.002]
[1745878158251,1.68047937,94700.0,94678.0,0.002]
[1745878158468,1.78736951,94700.0,94678.0,0.002]
[1745878158903,1.76587651,94700.0,94678.0,0.002]
[1745878159119,1.52719251,94700.0,94678.0,0.002]
[1745878160587,0.55121108,94692.0,94678.0,0.002]
[1745878160799,0.65986308,94687.0,94678.0,0.002]
[1745878161028,0.78995355,94687.0,94678.0,0.002]
[1745878161257,1.09653855,94687.0,94678.0,0.002]
[1745878161462,1.11634277,94687.0,94678.0,0.002]
[1745878161686,1.18006542,94687.0,94678.0,0.002]
[1745878162087,0.56578093,94679.0,94678.0,0.002]
[1745878162349,0.7280955,94679.0,94678.0,0.002]
[1745878162565,0.84514659,94679.0,94678.0,0.002]
[1745878163161,0.92573383,94679.0,94678.0,0.002]
[1745878163572,0.92873383,94679.0,94678.0,0.002]
[1745878163727,0.92973383,94679.0,94678.0,0.002]
[1745878164532,0.97873383,94679.0,94678.0,0.002]
[1745878164734,0.89814659,94679.0,94678.0,0.002]
[1745878165356,0.90014659,94679.0,94678.0,0.002]
[1745878165777,0.89514659,94679.0,94678.0,0.002]
[1745878165981,0.90114659,94679.0,94678.0,0.002]
[1745878166188,1.05803673,94679.0,94678.0,0.002]
[1745878166601,1.06103673,94679.0,94678.0,0.002]
[1745878168320,1.01103673,94679.0,94678.0,0.002]
[1745878169892,1.03068874,94679.0,94678.0,0.002]
[1745878171316,0.9237986,94679.0,94678.0,0.002]
[1745878171539,0.9237986,94679.0,94678.0,0.0516]
[1745878171540,0.15841767,94679.0,94678.0,0.0516]
[1745878171892,0.13876566,94679.0,94678.0,0.0516]
[1745878172102,0.01948036,94679.0,94678.0,0.0516]
[1745878172311,0.01648036,94679.0,94678.0,0.10001229]
[1745878172524,0.00742443,94699.0,94698.0,0.2111977]
[1745878172732,0.00742443,94699.0,94698.0,0.3060977]
[1745878172978,0.04980498,94714.0,94711.0,0.22172496]
[1745878173205,0.04980498,94714.0,94711.0,0.01055843]
[1745878173585,0.00876243,94713.0,94710.0,0.01055854]
[1745878173759,0.10689014,94712.0,94710.0,0.01055854]
[1745878173963,0.00876563,94711.0,94710.0,0.01055854]
[1745878174176,0.11565577,94711.0,94710.0,0.01055854]
[1745878176246,0.11765577,94711.0,94710.0,0.01055854]
[1745878176467,0.11765577,94711.0,94710.0,0.01155854]
[1745878177889,0.11765577,94711.0,94710.0,0.001]
[1745878179686,0.10889014,94711.0,94710.0,0.001]
[1745878180101,0.11767014,94711.0,94710.0,0.001]
[1745878183822,0.11567014,94711.0,94710.0,0.001]
[1745878184174,0.11667014,94711.0,94710.0,0.001]
[1745878185177,0.11667014,94711.0,94709.0,0.21117156]
[1745878185333,0.10689014,94710.0,94709.0,0.21117156]
[1745878185716,0.115925,94710.0,94709.0,0.21117156]
[1745878186504,0.115925,94710.0,94709.0,0.21217156]
[1745878188435,0.115925,94710.0,94709.0,0.001]
[1745878188861,0.10689014,94710.0,94709.0,0.001]
[1745878189767,0.115925,94710.0,94709.0,0.001]
[1745878191524,0.10689014,94710.0,94709.0,0.001]
[1745878192138,0.31806108,94710.0,94709.0,0.001]
[1745878192382,0.32709754,94710.0,94709.0,0.001]
[1745878192597,0.1159266,94710.0,94709.0,0.001]
[1745878192924,0.10689014,94710.0,94709.0,0.001]
[1745878195468,0.1159266,94710.0,94709.0,0.001]
[1745878196110,0.10689014,94710.0,94709.0,0.001]
[1745878197193,0.11593075,94710.0,94709.0,0.001]
[1745878197446,0.11593075,94710.0,94707.0,0.21117763]
[1745878197650,0.10689014,94710.0,94707.0,0.22173651]
[1745878197797,0.0090422,94709.0,94707.0,0.22173651]
[1745878198010,0.21111744,94734.0,94722.0,0.0105572]
[1745878198215,0.01055642,94729.0,94723.0,0.01055709]
[1745878198399,0.01055709,94723.0,94720.0,0.15652017]
[1745878198605,0.00906457,94722.0,94719.0,0.01055754]
[1745878198826,0.32857796,94728.0,94724.0,0.01055698]
[1745878199039,0.00932717,94727.0,94724.0,0.01055698]
[1745878199424,0.10689014,94726.0,94724.0,0.01055698]
[1745878199642,0.10689014,94726.0,94722.0,0.0105572]
[1745878199860,0.00932876,94725.0,94722.0,0.0105572]
[1745878200071,0.1162189,94725.0,94722.0,0.0105572]
[1745878200293,0.12677577,94725.0,94721.0,0.01055732]
[1745878200480,0.33791337,94725.0,94721.0,0.01055732]
[1745878201220,0.33791337,94725.0,94719.0,0.002]
[1745878201221,0.21114196,94723.0,94719.0,0.002]
[1745878201447,0.01055787,94716.0,94709.0,0.05905865]
[1745878201684,0.01055821,94713.0,94710.0,0.56762017]
[1745878201944,0.0105591,94705.0,94700.0,0.37827306]
[1745878202163,0.01055943,94702.0,94699.0,0.4111]
[1745878202392,0.01056044,94693.0,94690.0,0.15652017]
[1745878202654,0.01056088,94689.0,94683.0,0.4111]
[1745878202882,0.11623488,94688.0,94687.0,0.00798446]
[1745878203104,0.11623488,94688.0,94683.0,0.4111]
[1745878203105,0.21122826,94685.0,94683.0,0.4111]
[1745878203327,0.01056178,94681.0,94678.0,0.002]
[1745878203536,0.10689014,94680.0,94678.0,0.002]
[1745878203753,0.11610066,94680.0,94678.0,0.002]
[1745878204185,0.00741597,94679.0,94678.0,0.002]
[1745878204399,0.11430611,94679.0,94678.0,0.002]
[1745878204620,0.13799812,94679.0,94678.0,0.002]
[1745878204845,0.18579812,94679.0,94678.0,0.002]
[1745878205247,0.57509812,94679.0,94678.0,0.002]
[1745878205249,0.72797812,94679.0,94678.0,0.002]
[1745878205459,0.78486826,94679.0,94678.0,0.002]
[1745878205671,0.78486826,94679.0,94678.0,0.004]
[1745878205884,0.68097812,94679.0,94678.0,0.002]
[1745878206100,0.34097812,94679.0,94678.0,0.002]
[1745878206321,0.68297812,94679.0,94678.0,0.002]
[1745878206558,0.67997812,94679.0,94678.0,0.002]
[1745878206734,0.68297812,94679.0,94678.0,0.002]
[1745878207597,0.12845727,94679.0,94678.0,0.21324231]
[1745878207812,0.1210413,94679.0,94678.0,0.21324231]
[1745878208028,0.1210413,94679.0,94678.0,0.002]
[1745878208478,0.1180413,94679.0,94678.0,0.002]
[1745878208678,0.1160413,94679.0,94678.0,0.002]
[1745878208890,0.10689014,94679.0,94678.0,0.002]
[1745878209093,0.10689014,94679.0,94678.0,0.003]
[1745878209292,0.10689014,94679.0,94678.0,0.103]
[1745878209530,0.10689014,94679.0,94678.0,0.106]
[1745878210161,0.10689014,94679.0,94678.0,0.109]
[1745878217787,0.10689014,94679.0,94678.0,0.32024231]
[1745878228407,0.10689014,94679.0,94678.0,0.33106119]
[1745878235782,0.00738899,94697.0,94696.0,0.21120216]
[1745878236007,0.01055821,94713.0,94696.0,0.21120216]
[1745878236008,0.01055665,94727.0,94722.0,0.0105572]
[1745878236231,0.01055665,94727.0,94721.0,0.01055732]
[1745878236444,0.00904253,94726.0,94722.0,0.22170139]
[1745878236633,0.00904253,94726.0,94723.0,0.01055709]
[1745878236880,0.01959786,94725.0,94721.0,0.01055732]
[1745878237335,0.00904099,94725.0,94722.0,0.0105572]
[1745878237526,0.10689014,94724.0,94722.0,0.0105572]
[1745878237776,0.10689014,94724.0,94722.0,0.01850275]
[1745878237998,0.00904253,94723.0,94722.0,0.01850275]
[1745878238237,0.11593267,94723.0,94722.0,0.01850275]
[1745878239277,0.11593267,94723.0,94722.0,0.0105572]
[1745878239512,0.11793267,94723.0,94722.0,0.0105572]
[1745878242129,0.11793267,94723.0,94722.0,0.01836406]
[1745878243612,0.11793267,94723.0,94722.0,0.03799524]
[1745878245134,0.01104253,94723.0,94722.0,0.03799524]
[1745878245577,0.002,94723.0,94722.0,0.04872026]
[1745878247431,0.002,94723.0,94721.0,0.42165732]
[1745878247672,0.002,94723.0,94722.0,0.21114419]
[1745878248460,0.02,94733.0,94732.0,0.2111219]
[1745878248779,0.12689014,94733.0,94732.0,0.2111219]
[1745878249387,0.13614802,94733.0,94732.0,0.2111219]
[1745878249579,0.13914802,94733.0,94732.0,0.2111219]
[1745878251344,0.14114802,94733.0,94732.0,0.2111219]
[1745878251543,0.14114802,94733.0,94730.0,0.22168201]
[1745878251745,0.10689014,94732.0,94730.0,0.22168201]
[1745878252147,0.00925942,94731.0,94730.0,0.22168201]
[1745878252347,0.11614956,94731.0,94730.0,0.22168201]
[1745878254490,0.11814956,94731.0,94730.0,0.22168201]
[1745878254866,0.12114956,94731.0,94730.0,0.22168201]
[1745878257333,0.01425942,94731.0,94730.0,0.22168201]
[1745878257737,0.005,94731.0,94730.0,0.22168201]
[1745878257943,0.11189014,94731.0,94730.0,0.22168266]
[1745878258489,0.12117215,94731.0,94730.0,0.22168266]
[1745878260473,0.12117215,94731.0,94728.0,0.01055654]
[1745878260687,0.12117215,94731.0,94727.0,0.01055665]
[1745878260688,0.11744645,94730.0,94727.0,0.01055665]
[1745878260898,0.10689014,94730.0,94727.0,0.22168933]
[1745878261111,0.10689014,94730.0,94729.0,0.21112858]
[1745878261744,0.10689014,94730.0,94727.0,0.01055665]
[1745878261966,0.10889014,94730.0,94727.0,0.01055665]
[1745878262185,0.10889014,94730.0,94727.0,0.22168938]
[1745878262483,0.10689014,94730.0,94727.0,0.01055665]
[1745878262683,0.10889014,94730.0,94727.0,0.01055665]
[1745878262896,0.10889014,94730.0,94727.0,0.22168963]
[1745878263565,0.21112858,94729.0,94722.0,0.01841652]
[1745878263790,0.01055687,94725.0,94722.0,0.00785932]
[1745878264004,0.31802987,94724.0,94722.0,0.00785932]
[1745878264192,0.32858685,94724.0,94721.0,0.26982355]
[1745878265001,0.32858685,94724.0,94721.0,0.27770203]
[1745878265559,0.11844712,94724.0,94721.0,0.27770203]
[1745878266706,0.11844712,94724.0,94721.0,0.00787848]
[1745878266927,0.01055709,94723.0,94720.0,0.01055743]
[1745878267134,0.10689014,94722.0,94720.0,0.01055743]
[1745878268602,0.01055754,94719.0,94714.0,0.21116014]
[1745878268798,0.10689014,94718.0,94714.0,0.21116014]
[1745878268999,0.10689014,94718.0,94716.0,0.21115756]
[1745878269238,0.10689014,94718.0,94716.0,0.23084299]
[1745878269971,0.10689014,94718.0,94717.0,0.01968543]
[1745878270716,0.11638666,94718.0,94717.0,0.01968543]
[1745878271513,0.11638666,94718.0,94717.0,0.02068543]
[1745878276152,0.11638666,94718.0,94717.0,0.001]
[1745878278314,0.10689014,94718.0,94717.0,0.02067983]
[1745878288654,0.1163768,94718.0,94717.0,0.02067983]
[1745878290028,0.1163768,94718.0,94717.0,0.001]
[1745878291545,0.10689014,94718.0,94717.0,0.001]
[1745878303297,0.10689014,94718.0,94716.0,0.21917444]
[1745878303514,0.10689014,94718.0,94717.0,0.002]
[1745878304317,0.21110606,94740.0,94734.0,0.01055587]
[1745878304520,0.11633844,94737.0,94734.0,0.01055587]
[1745878304834,0.12689397,94737.0,94734.0,0.01055587]
[1745878305814,0.12789397,94737.0,94734.0,0.01055587]
[1745878306061,0.13189397,94737.0,94734.0,0.01055587]
[1745878309060,0.12133844,94737.0,94735.0,0.21111521]
[1745878310019,0.11189014,94737.0,94735.0,0.21111521]
[1745878311093,0.11089014,94737.0,94735.0,0.21111521]
[1745878311339,0.11189014,94737.0,94735.0,0.21111521]
[1745878311517,0.10789014,94737.0,94735.0,0.21111521]
[1745878311728,0.11189014,94737.0,94735.0,0.21111521]
[1745878311924,0.11289014,94737.0,94735.0,0.21111521]
[1745878312305,0.10889014,94737.0,94735.0,0.21111521]
[1745878312508,0.11189014,94737.0,94735.0,0.22980068]
[1745878313712,0.005,94737.0,94735.0,0.22980068]
[1745878314170,0.0008486,94744.0,94743.0,0.21109738]
[1745878314392,0.10773874,94744.0,94743.0,0.21109738]
[1745878314817,0.11724096,94744.0,94743.0,0.21109738]
[1745878315344,0.11724096,94744.0,94743.0,0.2190642]
[1745878315767,0.01035082,94744.0,94743.0,0.2190642]
[1745878315968,0.0008486,94744.0,94743.0,0.2190642]
[1745878319405,0.0008486,94744.0,94743.0,0.1990642]
[1745878324598,0.01042477,94744.0,94743.0,0.1990642]
[1745878324722,0.0008486,94744.0,94743.0,0.1990642]
[1745878324957,0.01042477,94744.0,94743.0,0.1990642]
[1745878336101,0.01783168,94744.0,94743.0,0.1990642]
[1745878347953,0.00825551,94744.0,94743.0,0.1990642]
[1745878350159,0.00825551,94744.0,94743.0,0.2990642]
[1745878352073,0.00825551,94744.0,94743.0,0.10796682]
[1745878352283,0.32624081,94744.0,94743.0,0.10796682]
[1745878352487,0.33580155,94744.0,94743.0,0.10796682]
[1745878353774,0.35559977,94744.0,94743.0,0.10796682]
[1745878354339,0.44793833,94744.0,94743.0,0.1]
[1745878354769,0.38528502,94744.0,94743.0,0.1]
[1745878354997,0.35559977,94744.0,94743.0,0.1]
[1745878355450,0.35759977,94744.0,94743.0,0.1]
[1745878356039,0.35859977,94744.0,94743.0,0.1]
[1745878358729,0.37314062,94744.0,94743.0,0.1]
[1745878361474,0.46723327,94744.0,94743.0,0.1]
[1745878361812,0.51523327,94744.0,94743.0,0.1]
[1745878362433,0.42114062,94744.0,94743.0,0.1]
[1745878366761,0.42114315,94744.0,94743.0,0.1]
[1745878375830,0.40134493,94744.0,94743.0,0.1]
[1745878384643,0.43100105,94744.0,94743.0,0.1]
[1745878386919,0.77100105,94744.0,94743.0,0.1]
[1745878387246,0.87789119,94744.0,94743.0,0.1]
[1745878389590,0.77100105,94744.0,94743.0,0.1]
[1745878390561,0.76900105,94744.0,94743.0,0.1]
[1745878390769,0.22171631,94716.0,94710.0,0.15004353]
[1745878390979,0.0105581,94714.0,94711.0,0.01055843]
[1745878391152,0.0105581,94714.0,94710.0,0.14751628]
[1745878391153,0.12485779,94713.0,94710.0,0.14751628]
[1745878391359,0.12485779,94713.0,94710.0,0.00803129]
[1745878391565,0.00960032,94712.0,94710.0,0.00803129]
[1745878391781,0.10689014,94711.0,94710.0,0.00803129]
[1745878392180,0.12378711,94711.0,94710.0,0.00803129]
[1745878392373,0.33495582,94711.0,94710.0,0.01003129]
[1745878392930,0.33495582,94711.0,94710.0,0.01303129]
[1745878393140,0.33495582,94711.0,94710.0,0.01603129]
[1745878393551,0.33495582,94711.0,94710.0,0.01303129]
[1745878393755,0.33495582,94711.0,94710.0,0.01703129]
[1745878394341,0.33495582,94711.0,94710.0,0.11703129]
[1745878396866,0.41385076,94711.0,94710.0,0.11703129]
[1745878397108,0.32754638,94711.0,94710.0,0.11703129]
[1745878397959,0.33495582,94711.0,94710.0,0.11703129]
[1745878399534,0.32754638,94711.0,94710.0,0.11703129]
[1745878400464,0.32704638,94711.0,94710.0,0.11703129]
[1745878409037,0.00948753,94711.0,94710.0,0.21503129]
[1745878409467,0.00740944,94713.0,94712.0,0.0486]
[1745878409939,0.00740944,94735.0,94732.0,0.01055609]
[1745878410154,0.10689014,94734.0,94732.0,0.01055609]
[1745878410352,0.11623407,94734.0,94732.0,0.01055609]
[1745878410489,0.11623407,94734.0,94732.0,0.2216779]
[1745878411721,0.00740944,94735.0,94734.0,0.21111744]
[1745878411953,0.11429958,94735.0,94734.0,0.26730633]
[1745878412969,0.11529958,94735.0,94734.0,0.26730633]
[1745878413296,0.10789014,94735.0,94734.0,0.26730633]
[1745878415180,0.10789014,94735.0,94734.0,0.28497764]
[1745878415755,0.10689014,94735.0,94734.0,0.28497764]
[1745878416168,0.10689014,94735.0,94734.0,0.28597764]
[1745878416373,0.10689014,94735.0,94734.0,0.28797764]
[1745878428949,0.10689014,94735.0,94734.0,0.26797764]
[1745878430756,0.0008486,94744.0,94743.0,0.21109738]
[1745878430960,0.10773874,94744.0,94743.0,0.21109738]
[1745878431357,0.11727717,94744.0,94743.0,0.21109738]
[1745878432046,0.11827717,94744.0,94743.0,0.21223385]
[1745878436172,0.10873874,94744.0,94743.0,0.21223385]
[1745878437483,0.11827717,94744.0,94743.0,0.21223385]
[1745878438371,0.13797224,94744.0,94743.0,0.21223385]
[1745878439211,0.14758384,94744.0,94743.0,0.21223385]
[1745878439927,0.15496733,94744.0,94743.0,0.21223385]
[1745878443459,0.13527226,94744.0,94743.0,0.21223385]
[1745878443613,0.15506562,94744.0,94743.0,0.21223385]
[1745878448323,0.15506562,94744.0,94743.0,0.31223385]
[1745878450960,0.15506562,94744.0,94743.0,0.31223385]
[1745878451966,0.15506562,94744.0,94743.0,0.21223385]
[1745878453735,0.15506562,94744.0,94743.0,0.00113647]
[1745878453904,0.36616078,94744.0,94743.0,0.00113647]
[1745878455086,0.41156078,94744.0,94743.0,0.00113647]
[1745878456270,0.41156532,94744.0,94743.0,0.00113647]
[1745878458057,0.41156532,94744.0,94743.0,0.01113647]
[1745878460527,0.20047016,94744.0,94743.0,0.01113647]
[1745878460735,0.15507016,94744.0,94743.0,0.01113647]
[1745878464513,0.15507016,94744.0,94743.0,0.22223385]
[1745878464807,0.15507016,94744.0,94743.0,0.01113647]
[1745878465012,0.15507016,94744.0,94743.0,0.22223385]
[1745878467714,0.15507016,94744.0,94743.0,0.01113647]
[1745878474320,0.14553173,94744.0,94743.0,0.01113647]
[1745878474544,0.15519111,94744.0,94743.0,0.01113647]
[1745878478946,0.15519111,94744.0,94741.0,0.22165692]
[1745878479147,0.10689014,94743.0,94741.0,0.22165692]
[1745878479344,0.00738349,94742.0,94741.0,0.22165692]
[1745878479573,0.14373179,94742.0,94741.0,0.22165692]
[1745878480622,0.14373179,94742.0,94741.0,0.22265692]
[1745878481160,0.14373179,94742.0,94741.0,0.22365692]
[1745878482783,0.14373179,94742.0,94741.0,0.23365692]
[1745878488807,0.14373179,94742.0,94741.0,0.012]
[1745878491421,0.3548314,94742.0,94741.0,0.012]
[1745878491632,0.4535314,94742.0,94741.0,0.012]
[1745878492075,0.24243179,94742.0,94741.0,0.012]
[1745878492716,0.24243179,94742.0,94741.0,0.01]
[1745878493189,0.24343179,94742.0,94741.0,0.01]
[1745878493879,0.35043962,94742.0,94741.0,0.01]
[1745878494105,0.01055609,94732.0,94723.0,0.01055709]
[1745878494332,0.01055609,94732.0,94726.0,0.21113329]
[1745878494333,0.10689014,94731.0,94726.0,0.21113329]
[1745878494569,0.14373763,94731.0,94728.0,0.22168697]
[1745878494981,0.0197979,94730.0,94728.0,0.22168697]
[1745878495199,0.10689014,94729.0,94728.0,0.22168697]
[1745878495449,0.12393205,94729.0,94728.0,0.01055654]
[1745878495599,0.14372995,94729.0,94728.0,0.01055654]
[1745878496126,0.14372995,94729.0,94722.0,0.21114262]
[1745878496127,0.01055665,94727.0,94722.0,0.0105572]
[1745878496323,0.11648184,94726.0,94723.0,0.01055709]
[1745878496568,0.0197979,94725.0,94723.0,0.01055709]
[1745878496773,0.10689014,94724.0,94720.0,0.01055743]
[1745878496969,0.1362782,94724.0,94721.0,0.01055732]
[1745878497315,0.0197979,94723.0,94721.0,0.01055732]
[1745878497509,0.11648337,94722.0,94721.0,0.01055732]
[1745878498000,0.2185221,94722.0,94717.0,0.01055776]
[1745878498234,0.01055732,94721.0,94717.0,0.01055776]
[1745878498420,0.11744757,94720.0,94715.0,0.01055798]
[1745878498568,0.12704695,94720.0,94715.0,0.01055798]
[1745878498784,0.19353064,94720.0,94714.0,0.0105581]
[1745878499002,0.02718139,94719.0,94714.0,0.0105581]
[1745878499210,0.12668804,94718.0,94715.0,0.01055798]
[1745878499416,0.13629203,94718.0,94715.0,0.01055798]
[1745878499608,0.0197979,94717.0,94715.0,0.01055798]
[1745878499814,0.10689014,94716.0,94715.0,0.01055798]
[1745878500010,0.13629049,94716.0,94715.0,0.01055798]
[1745878500361,0.13629049,94716.0,94715.0,0.23171777]
[1745878500900,0.12668804,94716.0,94715.0,0.23271777]
[1745878501107,0.12668804,94716.0,94715.0,0.23171777]
[1745878502522,0.12668804,94716.0,94715.0,0.23271777]
[1745878507580,0.12668804,94716.0,94715.0,0.011]
[1745878508096,0.13629203,94716.0,94715.0,0.011]
[1745878521469,0.14370052,94716.0,94715.0,0.011]
[1745878523726,0.13870052,94716.0,94715.0,0.011]
[1745878539505,0.13870052,94716.0,94715.0,0.01]
[1745878539868,0.13870052,94716.0,94715.0,0.011]
[1745878541645,0.13970052,94716.0,94715.0,0.011]
[1745878541871,0.20134137,94716.0,94715.0,0.011]
[1745878542033,0.20034137,94716.0,94715.0,0.011]
[1745878542378,0.20134137,94716.0,94715.0,0.011]
[1745878542773,0.20134137,94716.0,94715.0,0.01]
[1745878550412,0.20132303,94716.0,94715.0,0.01]
[1745878553321,0.15422303,94716.0,94715.0,0.01]
[1745878554205,0.21117763,94707.0,94706.0,0.15648852]
[1745878554384,0.21118149,94706.0,94702.0,0.01055943]
[1745878554598,0.11638564,94705.0,94702.0,0.01055943]
[1745878554800,0.01977956,94704.0,94702.0,0.01055943]
[1745878554999,0.10689014,94703.0,94702.0,0.01055943]
[1745878555267,0.31807684,94703.0,94692.0,0.30576946]
[1745878555393,0.13616673,94703.0,94700.0,0.27188899]
[1745878555827,0.13616673,94703.0,94702.0,0.002]
[1745878556052,0.01977956,94702.0,94700.0,0.27188899]
[1745878556247,0.10689014,94701.0,94700.0,0.27188899]
[1745878556448,0.13616827,94701.0,94700.0,0.28582495]
[1745878556811,0.13616827,94701.0,94700.0,0.28882495]
[1745878557210,0.13616827,94701.0,94700.0,0.28582495]
[1745878557443,0.13616827,94701.0,94700.0,0.29670179]
[1745878557614,0.13616827,94701.0,94700.0,0.29870179]
[1745878559712,0.13616827,94701.0,94700.0,0.30870179]
[1745878560391,0.13616827,94701.0,94700.0,0.39940179]
[1745878561409,0.13616827,94701.0,94700.0,0.30870179]
[1745878561762,0.13430796,94701.0,94700.0,0.30870179]
[1745878565167,0.12480939,94701.0,94700.0,0.30870179]
[1745878569028,0.13431518,94701.0,94700.0,0.09750894]
[1745878570539,0.14174025,94701.0,94700.0,0.09750894]
[1745878574030,0.13223446,94701.0,94700.0,0.09750894]
[1745878576656,0.14174025,94701.0,94700.0,0.09750894]
[1745878577851,0.14174025,94701.0,94700.0,0.09250894]
[1745878578055,0.14174025,94701.0,94700.0,0.09450894]
[1745878578309,0.13223446,94701.0,94700.0,0.09450894]
[1745878579130,0.13223446,94701.0,94700.0,0.09650894]
[1745878581335,0.14174025,94701.0,94700.0,0.09650894]
[1745878592995,0.14174368,94701.0,94700.0,0.09650894]
[1745878600657,0.14177341,94701.0,94700.0,0.09650894]
[1745878606862,0.13226762,94701.0,94700.0,0.09650894]
[1745878618809,0.13226762,94701.0,94700.0,0.09450894]
[1745878619187,0.13226762,94701.0,94700.0,0.09550894]
[1745878620186,0.13226762,94701.0,94700.0,0.09350894]
[1745878620610,0.13226762,94701.0,94700.0,0.09550894]
[1745878622343,0.1417589,94701.0,94700.0,0.09550894]
[1745878623093,0.13226762,94701.0,94700.0,0.09550894]
[1745878630171,0.1417589,94701.0,94700.0,0.09550894]
[1745878633087,0.1417589,94701.0,94700.0,0.08157298]
[1745878640742,0.13226762,94701.0,94700.0,0.08157298]
[1745878649257,0.14176094,94701.0,94700.0,0.08157298]
[1745878649486,0.14176094,94701.0,94699.0,0.12635739]
[1745878649722,0.14176094,94701.0,94699.0,0.13437835]
[1745878649958,0.14176094,94701.0,94700.0,0.01055966]
[1745878650169,0.12195165,94701.0,94700.0,0.01055966]
[1745878650823,0.14175981,94701.0,94700.0,0.01055966]
[1745878651262,0.14175981,94701.0,94700.0,0.01255966]
[1745878651517,0.14175981,94701.0,94700.0,0.01455966]
[1745878652235,0.14184134,94701.0,94700.0,0.01455966]
[1745878654486,0.13234802,94701.0,94700.0,0.01455966]
[1745878659408,0.02731819,94701.0,94700.0,0.01455966]
[1745878659854,0.02731819,94701.0,94700.0,0.45407135]
[1745878660035,0.00751003,94701.0,94700.0,0.87305966]
[1745878660591,0.00751003,94701.0,94700.0,0.96721966]
[1745878660740,8.153e-05,94701.0,94700.0,0.96721966]
[1745878661741,8.153e-05,94701.0,94700.0,0.96521966]
[1745878661941,8.153e-05,94701.0,94700.0,0.96321966]
[1745878662195,8.153e-05,94701.0,94700.0,0.96921966]
[1745878667895,8.153e-05,94701.0,94700.0,0.61866]
[1745878668789,8.153e-05,94701.0,94700.0,0.62921966]
[1745878669793,8.153e-05,94701.0,94700.0,0.96921966]
[1745878670441,0.00740941,94731.0,94730.0,0.21112635]
[1745878670660,0.0008486,94739.0,94738.0,0.21110853]
[1745878670876,0.00093025,94739.0,94738.0,0.96431922]
[1745878671112,0.0008486,94744.0,94741.0,0.34]
[1745878671339,1e-08,94749.0,94748.0,0.34]
[1745878672009,1e-08,94749.0,94748.0,0.434]
[1745878672235,1e-08,94749.0,94748.0,0.45944942]
[1745878673167,1e-08,94749.0,94748.0,0.46044942]
[1745878674537,0.0008484,94762.0,94753.0,0.21107511]
[1745878674538,1e-08,94754.0,94753.0,0.21107511]
[1745878674748,0.0008484,94762.0,94759.0,0.35055308]
[1745878674749,1e-08,94762.0,94759.0,0.35055308]
[1745878674957,1e-08,94762.0,94761.0,0.34]
[1745878675194,8.163e-05,94762.0,94761.0,0.34]
[1745878676469,0.21113835,94762.0,94761.0,0.5051]
[1745878676683,0.32660494,94762.0,94761.0,0.4111]
[1745878677121,0.01055442,94747.0,94741.0,0.11609808]
[1745878677332,0.04638163,94762.0,94758.0,0.01055319]
[1745878677542,0.10689014,94761.0,94759.0,0.22161482]
[1745878677754,0.11541128,94761.0,94759.0,0.22161482]
[1745878677965,0.11541128,94761.0,94759.0,0.01055308]
[1745878678167,0.11541128,94761.0,94759.0,0.22161462]
[1745878678995,0.11941128,94761.0,94759.0,0.22161462]
[1745878680398,0.01252114,94761.0,94759.0,0.22161462]
[1745878680615,0.004,94761.0,94759.0,0.22161462]
[1745878680810,0.004,94761.0,94760.0,0.00211033]
[1745878681501,8.163e-05,94762.0,94761.0,0.21105729]
[1745878681654,0.01055286,94761.0,94758.0,0.4111]
[1745878681860,0.32639089,94760.0,94758.0,0.4111]
[1745878682060,0.01055431,94748.0,94740.0,0.27092366]
[1745878682401,0.11535599,94747.0,94746.0,0.01055453]
[1745878682687,0.10689014,94747.0,94746.0,0.01055453]
[1745878684188,0.01055464,94745.0,94740.0,0.02209821]
[1745878684413,0.01055475,94744.0,94741.0,0.01055509]
[1745878684688,0.00842103,94744.0,94741.0,0.22165605]
[1745878685132,0.001,94747.0,94744.0,0.22164991]
[1745878685475,0.001,94747.0,94746.0,0.2110907]
[1745878686122,0.01255253,94764.0,94759.0,0.01055308]
[1745878686264,0.11511428,94761.0,94759.0,0.01055308]
[1745878687961,0.11511428,94761.0,94758.0,0.01055319]
[1745878688212,0.11911428,94761.0,94758.0,0.2216164]
[1745878689312,0.11511428,94761.0,94758.0,0.2216164]
[1745878689703,0.11911428,94761.0,94758.0,0.2216164]
[1745878690289,0.11911428,94761.0,94758.0,0.2316164]
[1745878692061,0.11089014,94761.0,94758.0,0.2316164]
[1745878692771,0.004,94761.0,94758.0,0.2316164]
[1745878693330,0.004,94761.0,94760.0,0.21105951]
[1745878693676,8.163e-05,94762.0,94760.0,0.21105951]
[1745878693805,0.003,94761.0,94760.0,0.21105951]
[1745878694014,0.003,94761.0,94758.0,0.2316164]
[1745878694015,0.33150179,94761.0,94758.0,0.01]
[1745878694235,0.11518545,94760.0,94758.0,0.01]
[1745878694889,0.21843099,94759.0,94758.0,0.01]
[1745878695109,0.22673859,94759.0,94758.0,0.01]
[1745878695582,0.23411646,94759.0,94758.0,0.01]